bitfinex/quotes_BTCUSD_20250313
["timestamp","ask_amount","ask_price","bid_price","bid_amount"]
[1741879916713,0.012249,81638.0,81633.0,0.012249]
[1741879916914,0.01225,81630.0,81625.0,0.012251]
[1741879917115,0.257259,81630.0,81625.0,0.257272]
[1741879917371,0.245005,81631.0,81626.0,0.257267]
[1741879917691,0.257239,81636.0,81631.0,0.01225]
[1741879917865,0.01919085,81638.0,81634.0,0.244993]
[1741879918404,0.01919085,81638.0,81635.0,0.24499]
[1741879918666,0.257235,81637.0,81633.0,0.244998]
[1741879918839,0.257243,81635.0,81630.0,0.245006]
[1741879919045,0.01225,81632.0,81627.0,0.245014]
[1741879919253,0.012249,81633.0,81629.0,0.245008]
[1741879919458,0.012249,81633.0,81628.0,0.01225]
[1741879919648,0.257253,81632.0,81627.0,0.245014]
[1741879919972,0.257256,81631.0,81627.0,0.245014]
[1741879920174,0.257249,81633.0,81625.0,0.012251]
[1741879920385,0.3,81649.0,81637.0,0.012249]
[1741879920613,0.012246,81655.0,81637.0,0.21004999]
[1741879920817,0.0003386,81658.0,81637.0,0.21004999]
[1741879920991,0.257174,81657.0,81637.0,0.25924999]
[1741879921192,0.012246,81655.0,81637.0,0.25924999]
[1741879921414,0.0003386,81658.0,81637.0,0.25918577]
[1741879921798,0.0120934,81656.0,81637.0,0.25918577]
[1741879921997,0.244937,81654.0,81637.0,0.25918577]
[1741879922201,0.244993,81636.0,81629.0,0.0813]
[1741879922404,0.012249,81637.0,81624.0,0.059351]
[1741879922658,0.257264,81628.0,81620.0,0.0001692]
[1741879922834,0.257272,81626.0,81620.0,0.0124202]
[1741879923010,0.245018,81627.0,81621.0,0.257283]
[1741879923225,0.25730567,81627.0,81621.0,0.257283]
[1741879923646,0.25730567,81627.0,81620.0,0.0001692]
[1741879923647,0.012251,81621.0,81620.0,0.0001692]
[1741879923861,0.257285,81621.0,81620.0,0.0001692]
[1741879924102,0.557285,81621.0,81620.0,0.0001692]
[1741879924326,0.67698599,81621.0,81620.0,0.0001692]
[1741879926331,0.57647987,81621.0,81620.0,0.0001692]
[1741879926825,0.57847987,81621.0,81620.0,0.0001692]
[1741879927205,0.69818086,81621.0,81620.0,0.0001692]
[1741879927550,0.69618086,81621.0,81620.0,0.0001692]
[1741879928753,0.69618086,81621.0,81620.0,2e-07]
[1741879929170,0.71072171,81621.0,81620.0,2e-07]
[1741879929378,0.84112171,81621.0,81620.0,2e-07]
[1741879929569,0.84812171,81621.0,81620.0,2e-07]
[1741879930076,0.57187485,81606.0,81605.0,2e-07]
[1741879930277,0.97567584,81606.0,81605.0,2e-07]
[1741879930473,0.92507584,81606.0,81605.0,2e-07]
[1741879930745,0.709134,81606.0,81605.0,2e-07]
[1741879930882,0.84803597,81606.0,81605.0,2e-07]
[1741879931274,0.69563597,81606.0,81605.0,2e-07]
[1741879931487,0.01920098,81606.0,81605.0,2e-07]
[1741879931720,0.01920098,81606.0,81605.0,0.13195519]
[1741879931906,0.26428098,81606.0,81605.0,2e-07]
[1741879932112,0.01920098,81606.0,81605.0,2e-07]
[1741879932319,0.03245498,81606.0,81605.0,2e-07]
[1741879932553,0.02020098,81606.0,81605.0,0.2573372]
[1741879932815,0.01920098,81606.0,81605.0,2e-07]
[1741879933008,0.33145498,81606.0,81605.0,2e-07]
[1741879933260,0.312254,81606.0,81605.0,2e-07]
[1741879933494,0.317254,81606.0,81605.0,2e-07]
[1741879933722,0.3,81606.0,81605.0,0.2573372]
[1741879933940,0.3,81606.0,81605.0,0.2450832]
[1741879934145,0.257334,81606.0,81605.0,2e-07]
[1741879934516,0.545079,81607.0,81605.0,2e-07]
[1741879934716,0.257313,81613.0,81605.0,2e-07]
[1741879934717,0.1524,81617.0,81612.0,0.012253]
[1741879934918,0.245065,81611.0,81606.0,0.012254]
[1741879935122,0.012252,81613.0,81608.0,0.012253]
[1741879935321,0.257323,81610.0,81605.0,0.0001693]
[1741879935521,0.245078,81607.0,81605.0,0.0001693]
[1741879935721,0.43317105,81606.0,81605.0,0.0001693]
[1741879935945,0.557378,81592.0,81573.0,8e-05]
[1741879936284,0.55746,81566.0,81564.0,0.0226874]
[1741879936455,0.67716099,81566.0,81564.0,0.0226874]
[1741879937064,0.82956099,81566.0,81564.0,0.0226874]
[1741879937263,0.84410184,81566.0,81564.0,0.0226874]
[1741879937463,0.72341084,81566.0,81564.0,0.0226874]
[1741879937995,0.72341084,81566.0,81530.0,0.015545]
[1741879937996,0.27200985,81563.0,81562.0,0.0124188]
[1741879938134,0.27200985,81563.0,81530.0,0.00328]
[1741879938135,0.01226,81561.0,81530.0,0.00328]
[1741879938341,0.00121606,81560.0,81549.0,0.012262]
[1741879938559,0.00121606,81560.0,81530.0,0.00328]
[1741879938560,0.019208,81566.0,81565.0,0.257463]
[1741879938890,0.019208,81566.0,81555.0,0.13318825]
[1741879938891,0.012258,81573.0,81564.0,0.245203]
[1741879939090,0.012259,81567.0,81558.0,0.012261]
[1741879939350,0.01226,81565.0,81556.0,0.012261]
[1741879939504,0.001,81566.0,81556.0,0.012261]
[1741879939835,0.257483,81559.0,81553.0,0.012261]
[1741879940064,0.01226,81560.0,81555.0,0.012261]
[1741879940266,0.257494,81555.0,81551.0,0.0008]
[1741879940913,0.557494,81555.0,81551.0,0.0008]
[1741879942087,0.012259,81570.0,81560.0,0.01226]
[1741879942335,0.3,81566.0,81561.0,0.01226]
[1741879942565,0.01251689,81575.0,81567.0,0.012259]
[1741879942771,0.3,81575.0,81570.0,0.012259]
[1741879943017,0.012258,81579.0,81567.0,0.012259]
[1741879943172,0.01243617,81578.0,81576.0,0.012258]
[1741879943391,0.012257,81580.0,81572.0,0.257441]
[1741879943616,0.012256,81587.0,81582.0,0.012257]
[1741879943863,0.012256,81592.0,81585.0,0.012257]
[1741879944067,0.397575,81602.0,81589.0,0.012256]
[1741879944277,0.257403,81585.0,81579.0,0.012258]
[1741879944453,0.257403,81585.0,81579.0,0.257418]
[1741879944658,0.257384,81590.0,81584.0,0.245146]
[1741879944861,0.245112,81596.0,81590.0,0.245125]
[1741879945061,0.012256,81591.0,81585.0,0.012257]
[1741879945263,0.012256,81588.0,81579.0,1.5]
[1741879945471,0.012257,81584.0,81579.0,1.757416]
[1741879945676,0.31920055,81589.0,81565.0,0.245203]
[1741879945877,0.245179,81573.0,81565.0,0.01226]
[1741879946089,0.245203,81565.0,81559.0,0.012261]
[1741879946232,0.245203,81565.0,81559.0,0.257479]
[1741879946434,0.01226,81565.0,81561.0,0.245215]
[1741879946639,0.0192057,81564.0,81561.0,0.257475]
[1741879946833,0.0192057,81564.0,81563.0,0.257469]
[1741879947039,0.0192057,81564.0,81563.0,0.37716999]
[1741879948101,0.0192057,81564.0,81563.0,0.257469]
[1741879948401,0.0192057,81564.0,81561.0,0.0001693]
[1741879948701,0.01226,81562.0,81561.0,0.0001693]
[1741879948909,0.01347606,81562.0,81561.0,0.0001693]
[1741879949101,0.01226,81562.0,81561.0,0.0001693]
[1741879949615,0.245209,81563.0,81561.0,0.0001693]
[1741879949826,0.257469,81563.0,81561.0,0.0001693]
[1741879950000,0.0192057,81564.0,81561.0,0.0001693]
[1741879950212,0.257472,81562.0,81561.0,0.0001693]
[1741879950529,0.0192057,81564.0,81563.0,0.01226]
[1741879951259,0.0192057,81564.0,81562.0,0.245212]
[1741879951455,0.0192057,81564.0,81563.0,0.01226]
[1741879951674,0.257406,81583.0,81576.0,0.012258]
[1741879951876,0.012255,81596.0,81588.0,0.012256]
[1741879952079,0.012256,81591.0,81582.0,0.257407]
[1741879952283,0.01920371,81585.0,81584.0,0.257403]
[1741879952484,0.245107,81597.0,81591.0,0.012256]
[1741879952775,0.012255,81598.0,81593.0,0.245119]
[1741879952963,0.012255,81596.0,81589.0,0.012256]
[1741879953114,0.01249276,81598.0,81589.0,0.012256]
[1741879953329,0.012253,81607.0,81594.0,0.012255]
[1741879953670,0.012256,81592.0,81586.0,0.012257]
[1741879953808,0.247107,81597.0,81591.0,0.245124]
[1741879954019,0.257344,81603.0,81597.0,0.012255]
[1741879954332,0.24511,81596.0,81587.0,0.012256]
[1741879954573,0.24511,81596.0,81590.0,0.012256]
[1741879954574,0.257365,81596.0,81590.0,0.012256]
[1741879954707,0.25737,81595.0,81589.0,0.012256]
[1741879954925,0.257393,81587.0,81584.0,0.001]
[1741879955129,0.245143,81585.0,81581.0,0.25741]
[1741879955353,0.012257,81581.0,81576.0,0.012258]
[1741879955556,0.01920141,81587.0,81585.0,0.245142]
[1741879955759,0.01920141,81587.0,81586.0,0.13195799]
[1741879956758,0.01920141,81587.0,81586.0,0.13318352]
[1741879956958,0.01920141,81587.0,81586.0,0.13195799]
[1741879957334,0.01920141,81587.0,81586.0,0.18195799]
[1741879958105,0.245072,81609.0,81603.0,0.012254]
[1741879958310,0.01919831,81608.0,81601.0,0.012254]
[1741879958504,0.01919831,81608.0,81607.0,0.25733]
[1741879958885,0.01919831,81608.0,81607.0,0.25633]
[1741879960247,0.01919831,81608.0,81601.0,0.15244]
[1741879960447,0.245093,81602.0,81595.0,0.257366]
[1741879960677,0.012254,81602.0,81597.0,0.245104]
[1741879960878,0.25733,81607.0,81598.0,0.012255]
[1741879961012,0.257336,81606.0,81600.0,0.012254]
[1741879961213,0.257339,81605.0,81600.0,0.012254]
[1741879961408,0.012254,81605.0,81600.0,0.012254]
[1741879961615,0.01919831,81608.0,81603.0,0.012254]
[1741879961817,0.0003382,81638.0,81612.0,0.245062]
[1741879961818,0.257285,81622.0,81612.0,0.245062]
[1741879962029,0.01239163,81618.0,81612.0,0.257315]
[1741879962472,0.01953443,81613.0,81612.0,0.257315]
[1741879962673,0.245071,81609.0,81604.0,0.11970099]
[1741879963050,0.012253,81612.0,81605.0,0.012254]
[1741879963254,0.01953443,81613.0,81606.0,0.37703199]
[1741879963573,0.01953443,81613.0,81612.0,0.004]
[1741879963802,0.01953443,81613.0,81610.0,0.257318]
[1741879964008,0.01953443,81613.0,81608.0,0.012253]
[1741879964212,0.01953443,81613.0,81606.0,0.36477799]
[1741879964213,0.012253,81611.0,81605.0,0.245083]
[1741879964383,0.245063,81612.0,81606.0,0.012254]
[1741879964727,0.24508,81606.0,81604.0,0.004]
[1741879964929,0.012254,81605.0,81604.0,0.004]
[1741879965734,0.012253,81609.0,81604.0,0.004]
[1741879965959,0.257318,81611.0,81605.0,0.24508]
[1741879966168,0.257323,81610.0,81605.0,0.012254]
[1741879966388,0.245039,81620.0,81612.0,0.016253]
[1741879966589,0.245039,81620.0,81612.0,0.020253]
[1741879966819,0.012251,81623.0,81612.0,0.016253]
[1741879966954,0.16465,81627.0,81612.0,0.012253]
[1741879967160,0.245024,81625.0,81612.0,0.012253]
[1741879967366,0.012251,81620.0,81612.0,0.012253]
[1741879967569,0.012252,81618.0,81612.0,0.012253]
[1741879967819,0.02457916,81618.0,81612.0,0.012253]
[1741879968000,0.012252,81617.0,81612.0,0.012253]
[1741879968199,0.01232716,81618.0,81612.0,0.015253]
[1741879969014,0.01232716,81618.0,81612.0,0.017253]
[1741879969211,0.01919469,81627.0,81612.0,0.13817917]
[1741879969422,0.01228312,81625.0,81612.0,0.13817917]
[1741879969628,0.01228312,81625.0,81612.0,0.13517917]
[1741879969946,0.01228312,81625.0,81612.0,0.13917917]
[1741879970145,6e-07,81613.0,81612.0,0.15249484]
[1741879970360,6e-07,81613.0,81612.0,0.4497199]
[1741879970686,6e-07,81613.0,81612.0,0.44849484]
[1741879970846,6e-07,81613.0,81612.0,0.45249484]
[1741879971195,6e-07,81613.0,81612.0,0.45049484]
[1741879971397,6e-07,81613.0,81612.0,0.44649484]
[1741879971601,6e-07,81613.0,81612.0,0.45149484]
[1741879971772,6e-07,81613.0,81612.0,0.45649484]
[1741879971952,6e-07,81613.0,81612.0,0.48061311]
[1741879972552,0.244934,81655.0,81637.0,0.257235]
[1741879972553,0.012247,81651.0,81637.0,0.257235]
[1741879972757,0.244962,81646.0,81637.0,0.52929599]
[1741879972957,0.257184,81654.0,81637.0,0.52929599]
[1741879973160,0.012247,81652.0,81637.0,0.52929599]
[1741879973362,0.3,81653.0,81637.0,0.52929599]
[1741879973529,0.3,81653.0,81637.0,0.52829599]
[1741879973728,0.244954,81648.0,81637.0,0.52829599]
[1741879973924,0.012248,81644.0,81637.0,0.52829599]
[1741879974283,0.02419061,81647.0,81637.0,0.53129599]
[1741879974467,0.01194361,81647.0,81637.0,0.53129599]
[1741879974668,0.01194361,81647.0,81637.0,2.03129599]
[1741879975117,0.01194361,81647.0,81637.0,2.03429599]
[1741879975246,0.257209,81646.0,81637.0,2.03429599]
[1741879975453,0.012247,81646.0,81637.0,2.03429599]
[1741879975673,0.25690261,81647.0,81637.0,2.03429599]
[1741879975674,0.012248,81644.0,81637.0,2.03429599]
[1741879976006,0.012248,81645.0,81637.0,0.53429599]
[1741879976170,0.244967,81644.0,81637.0,0.53429599]
[1741879976375,0.012248,81643.0,81637.0,0.53429599]
[1741879976573,0.257207,81646.0,81637.0,0.53429599]
[1741879976898,0.5400716,81678.0,81637.0,0.58229599]
[1741879976899,2e-07,81638.0,81637.0,0.58229599]
[1741879977263,2e-07,81638.0,81637.0,0.37068699]
[1741879977475,2e-07,81638.0,81637.0,0.38293599]
[1741879977832,2e-07,81638.0,81637.0,0.37993599]
[1741879978034,2e-07,81638.0,81637.0,0.38293599]
[1741879979172,2e-07,81638.0,81637.0,0.37993599]
[1741879979389,2e-07,81638.0,81637.0,0.38293599]
[1741879979781,2e-07,81638.0,81637.0,0.37993599]
[1741879979939,2e-07,81638.0,81637.0,0.38593599]
[1741879980146,2e-07,81638.0,81637.0,0.38293599]
[1741879980370,0.0003386,81658.0,81657.0,0.012246]
[1741879980535,0.0003386,81658.0,81657.0,0.37809737]
[1741879980733,0.0003386,81658.0,81657.0,0.37687299]
[1741879981118,0.0003386,81658.0,81654.0,0.012246]
[1741879981119,0.012247,81651.0,81646.0,0.257204]
[1741879981345,0.012246,81654.0,81647.0,0.012247]
[1741879981346,0.244944,81652.0,81647.0,0.012247]
[1741879981541,0.0003386,81658.0,81657.0,0.257172]
[1741879981752,0.0003386,81658.0,81657.0,0.37687299]
[1741879982171,0.0003386,81658.0,81657.0,0.38187299]
[1741879983316,6e-07,81658.0,81657.0,1.611331]
[1741879983526,0.0003386,81687.0,81657.0,1.611331]
[1741879983527,0.0003386,81687.0,81671.0,0.257128]
[1741879983731,0.0003386,81687.0,81671.0,0.52914899]
[1741879984774,0.0003386,81687.0,81671.0,2.04368984]
[1741879985168,0.0003386,81687.0,81671.0,2.02914899]
[1741879985407,0.0003386,81687.0,81671.0,2.03314899]
[1741879985726,2e-07,81678.0,81671.0,2.05268984]
[1741879985890,2e-07,81678.0,81677.0,0.39135084]
[1741879986248,2e-07,81678.0,81677.0,1.87680999]
[1741879987061,2e-07,81678.0,81677.0,1.89135084]
[1741879987494,2e-07,81678.0,81677.0,1.87680999]
[1741879988338,2e-07,81678.0,81677.0,1.89135084]
[1741879988543,2e-07,81678.0,81677.0,1.87680999]
[1741879988764,2e-07,81678.0,81677.0,1.88080999]
[1741879988931,2e-07,81678.0,81677.0,1.87680999]
[1741879989133,2e-07,81678.0,81677.0,1.88280999]
[1741879989289,2e-07,81678.0,81677.0,0.38880999]
[1741879989497,2e-07,81678.0,81677.0,0.38280999]
[1741879989972,2e-07,81678.0,81677.0,0.39735084]
[1741879990244,2e-07,81678.0,81677.0,0.38280999]
[1741879991622,2e-07,81678.0,81677.0,0.29618399]
[1741879992034,2e-07,81678.0,81677.0,0.012]
[1741879992439,0.3122432,81678.0,81677.0,0.012]
[1741879992853,0.3122716,81678.0,81677.0,0.012]
[1741879993229,0.5693776,81678.0,81677.0,0.012]
[1741879993638,0.81697859,81678.0,81677.0,0.012]
[1741879993847,0.83151944,81678.0,81677.0,1e-06]
[1741879994122,0.83151944,81678.0,81638.0,0.2574011]
[1741879994123,0.012247,81647.0,81638.0,0.1524091]
[1741879994359,0.012247,81647.0,81638.0,0.0001691]
[1741879994360,0.244972,81642.0,81638.0,0.0001691]
[1741879994582,0.141146,81653.0,81643.0,0.257213]
[1741879994780,0.3,81647.0,81643.0,0.012248]
[1741879994896,0.012247,81649.0,81644.0,0.257211]
[1741879995094,0.3,81651.0,81646.0,0.257206]
[1741879995302,0.3,81651.0,81648.0,0.244953]
[1741879995501,0.244929,81657.0,81651.0,0.012247]
[1741879995809,0.012247,81651.0,81645.0,0.012248]
[1741879996021,0.012247,81651.0,81645.0,1.512248]
[1741879996231,0.0191863,81656.0,81655.0,0.012246]
[1741879996851,0.257178,81655.0,81651.0,0.244944]
[1741879997068,0.0191863,81656.0,81651.0,0.257191]
[1741879997273,0.0191863,81656.0,81652.0,0.012247]
[1741879997545,0.0191863,81656.0,81648.0,0.013247]
[1741879997546,0.012247,81652.0,81648.0,0.001]
[1741879997702,0.012247,81651.0,81648.0,0.001]
[1741879997878,0.012246,81653.0,81648.0,0.001]
[1741879998292,0.012246,81653.0,81646.0,0.012247]
[1741879998544,0.0191863,81656.0,81655.0,0.001]
[1741879998692,0.0314323,81656.0,81655.0,0.001]
[1741879999306,0.012247,81649.0,81648.0,0.002]
[1741879999615,0.257197,81649.0,81648.0,0.002]
[1741880000656,0.0191863,81656.0,81653.0,0.012246]
[1741880000872,0.0191863,81656.0,81655.0,0.012246]
[1741880001621,0.0191863,81656.0,81651.0,0.244943]
[1741880001822,0.0191863,81656.0,81652.0,0.11870099]
[1741880002245,0.012246,81653.0,81646.0,0.15224]
[1741880002451,0.2572,81648.0,81647.0,0.11970099]
[1741880002647,0.012247,81650.0,81647.0,0.11970099]
[1741880002860,0.257197,81650.0,81647.0,0.11970099]
[1741880003061,0.012247,81648.0,81643.0,0.257214]
[1741880003232,0.012247,81652.0,81645.0,0.012248]
[1741880003447,0.244907,81664.0,81643.0,0.13194899]
[1741880003448,0.244916,81661.0,81653.0,0.012246]
[1741880003653,0.244932,81655.0,81648.0,0.244952]
[1741880003881,0.012246,81654.0,81649.0,0.012247]
[1741880004271,0.244953,81648.0,81643.0,0.11970099]
[1741880004482,0.24498,81639.0,81631.0,0.01225]
[1741880004705,0.257229,81639.0,81634.0,1.5]
[1741880005483,0.257229,81639.0,81624.0,0.15224]
[1741880005668,0.257229,81639.0,81625.0,0.257271]
[1741880005867,0.257229,81639.0,81638.0,0.0051691]
[1741880006645,0.26972409,81639.0,81638.0,0.0051691]
[1741880007065,0.26972409,81639.0,81638.0,0.0071691]
[1741880007261,0.26972409,81639.0,81638.0,0.0021691]
[1741880007415,0.26972409,81639.0,81638.0,0.0031691]
[1741880007838,0.56972409,81639.0,81638.0,0.0031691]
[1741880008201,0.68942508,81639.0,81638.0,0.0031691]
[1741880008739,0.68942508,81639.0,81638.0,0.0021691]
[1741880009298,0.31349509,81639.0,81638.0,0.0021691]
[1741880009504,0.32574409,81639.0,81638.0,0.0021691]
[1741880009746,0.32574409,81639.0,81638.0,0.0001691]
[1741880009979,0.31349509,81639.0,81638.0,0.2574011]
[1741880010146,0.31449509,81639.0,81638.0,0.2574011]
[1741880010354,0.31249509,81639.0,81638.0,0.0124181]
[1741880010884,0.008,81639.0,81638.0,0.0124181]
[1741880011057,0.004,81639.0,81638.0,0.0124181]
[1741880011647,0.004,81639.0,81638.0,0.0134181]
[1741880011853,0.0241792,81648.0,81641.0,0.012248]
[1741880012053,0.2691352,81648.0,81642.0,0.257219]
[1741880012274,0.257218,81643.0,81638.0,0.2574001]
[1741880012614,0.244958,81647.0,81638.0,0.0124181]
[1741880012750,0.244958,81647.0,81642.0,0.012248]
[1741880013395,0.257211,81645.0,81639.0,0.24498]
[1741880013535,0.012248,81641.0,81638.0,0.0001691]
[1741880013740,0.012249,81639.0,81638.0,0.0001691]
[1741880013940,0.012248,81641.0,81638.0,0.0001691]
[1741880014141,0.257229,81639.0,81638.0,0.0001691]
[1741880014394,0.557229,81639.0,81638.0,0.0001691]
[1741880014741,0.557229,81639.0,81638.0,0.0041691]
[1741880014923,0.257229,81639.0,81638.0,0.0051691]
[1741880015128,0.257229,81639.0,81638.0,0.0011691]
[1741880015521,0.004,81639.0,81638.0,0.0011691]
[1741880015724,0.004,81639.0,81638.0,0.0134181]
[1741880015925,0.24495,81650.0,81644.0,0.244964]
[1741880016131,0.244942,81652.0,81645.0,0.257208]
[1741880016312,0.3,81651.0,81649.0,0.012247]
[1741880016512,0.244921,81659.0,81651.0,0.244944]
[1741880016711,0.24494,81653.0,81648.0,0.244951]
[1741880017117,0.012247,81651.0,81643.0,0.244968]
[1741880017315,0.244976,81641.0,81638.0,0.0011691]
[1741880017519,0.257211,81645.0,81640.0,0.244975]
[1741880017751,0.257205,81647.0,81638.0,0.0124181]
[1741880017932,0.257215,81644.0,81639.0,0.244978]
[1741880018126,0.012247,81647.0,81639.0,0.244978]
[1741880018127,0.244953,81649.0,81644.0,0.244963]
[1741880018374,0.02456758,81653.0,81651.0,0.244944]
[1741880018375,0.01232158,81653.0,81651.0,0.244944]
[1741880018576,0.01232158,81653.0,81644.0,0.257212]
[1741880018777,0.2572,81649.0,81644.0,0.012248]
[1741880018955,0.01225547,81653.0,81648.0,0.257198]
[1741880019151,0.257184,81654.0,81644.0,0.012248]
[1741880019152,0.244948,81650.0,81645.0,0.244962]
[1741880019352,0.244955,81648.0,81643.0,0.001]
[1741880019704,0.012247,81646.0,81638.0,0.0001691]
[1741880019917,0.244965,81644.0,81638.0,0.0001691]
[1741880020118,0.244979,81640.0,81638.0,0.0001691]
[1741880020319,0.244969,81643.0,81638.0,0.0124181]
[1741880020593,0.012248,81642.0,81638.0,0.0001691]
[1741880020814,0.257215,81644.0,81643.0,0.002]
[1741880021204,0.257229,81639.0,81638.0,0.0001691]
[1741880021565,0.24498,81639.0,81638.0,0.0001691]
[1741880021763,0.24498,81639.0,81638.0,0.0041691]
[1741880022032,0.27641735,81639.0,81638.0,0.0041691]
[1741880022713,0.57641735,81639.0,81638.0,0.0071691]
[1741880022889,0.557229,81639.0,81638.0,0.0071691]
[1741880023096,0.557229,81639.0,81638.0,0.0001691]
[1741880023658,0.75442999,81639.0,81638.0,0.0071691]
[1741880023787,0.75442999,81639.0,81638.0,0.0021691]
[1741880023997,0.3775,81639.0,81638.0,0.0051691]
[1741880024218,0.244944,81652.0,81643.0,0.244966]
[1741880024219,0.02516187,81645.0,81643.0,0.244966]
[1741880024395,0.02516187,81645.0,81638.0,0.0031691]
[1741880024396,0.3,81644.0,81638.0,0.2481511]
[1741880024590,0.001,81639.0,81638.0,0.2604001]
[1741880025007,0.001,81639.0,81638.0,0.2574001]
[1741880025372,0.001,81639.0,81638.0,1.7574001]
[1741880025692,0.244956,81648.0,81643.0,0.257214]
[1741880025892,0.257213,81644.0,81638.0,1.5124181]
[1741880026205,0.002,81639.0,81638.0,1.7573991]
[1741880026389,0.003,81639.0,81638.0,1.7573991]
[1741880026591,0.012248,81645.0,81638.0,1.7573991]
[1741880026835,0.012248,81644.0,81638.0,1.7573991]
[1741880027045,0.012248,81644.0,81638.0,1.7583991]
[1741880027046,0.24497,81643.0,81638.0,1.7583991]
[1741880027242,0.257216,81644.0,81639.0,0.012249]
[1741880027645,0.01918818,81642.0,81641.0,0.012248]
[1741880027824,0.257213,81645.0,81641.0,1.5]
[1741880028024,0.244967,81644.0,81641.0,1.5]
[1741880028223,0.244967,81644.0,81638.0,0.0021691]
[1741880028224,0.337929,81639.0,81638.0,0.0021691]
[1741880028428,0.257229,81639.0,81638.0,0.0021691]
[1741880028885,0.3007372,81650.0,81641.0,0.012248]
[1741880029094,0.31243667,81653.0,81643.0,0.012248]
[1741880029262,0.31243667,81653.0,81649.0,0.244948]
[1741880029585,0.24495,81650.0,81644.0,0.244965]
[1741880029781,0.244957,81647.0,81642.0,0.11970099]
[1741880029989,0.012248,81644.0,81642.0,0.11970099]
[1741880030189,0.012248,81644.0,81638.0,0.2574001]
[1741880030413,0.244968,81644.0,81640.0,0.244976]
[1741880030608,0.24495,81650.0,81643.0,0.012248]
[1741880030810,0.244947,81650.0,81643.0,0.012248]
[1741880030961,0.5582644,81652.0,81645.0,0.244961]
[1741880031166,0.312247,81651.0,81645.0,0.257209]
[1741880031364,0.257206,81647.0,81642.0,0.257219]
[1741880031570,0.244962,81645.0,81640.0,0.11970099]
[1741880031777,0.244962,81645.0,81640.0,0.36467699]
[1741880031955,0.244962,81645.0,81640.0,0.11970099]
[1741880032161,0.244962,81645.0,81639.0,0.244979]
[1741880032162,0.012248,81643.0,81638.0,0.0011691]
[1741880032358,0.244965,81645.0,81638.0,0.0134181]
[1741880032739,0.244967,81644.0,81639.0,0.24498]
[1741880032953,0.012249,81639.0,81638.0,0.0001691]
[1741880033344,0.01346506,81639.0,81638.0,0.0001691]
[1741880033487,0.012249,81639.0,81638.0,0.0001691]
[1741880034091,0.012249,81639.0,81638.0,0.0011691]
[1741880034741,0.012249,81639.0,81638.0,0.0001691]
[1741880035127,0.0003382,81658.0,81638.0,0.0001691]
[1741880035329,0.3,81650.0,81645.0,0.012248]
[1741880035533,0.3,81651.0,81646.0,0.244959]
[1741880035934,0.557194,81651.0,81645.0,0.25721]
[1741880036182,0.244958,81647.0,81643.0,0.012248]
[1741880036360,0.257212,81645.0,81640.0,0.257225]
[1741880036503,0.244959,81646.0,81641.0,0.25722]
[1741880036504,0.012247,81646.0,81641.0,0.25722]
[1741880036715,0.257208,81646.0,81641.0,0.25722]
[1741880037120,0.24498,81640.0,81638.0,0.0001691]
[1741880037562,0.257213,81645.0,81643.0,0.001]
[1741880037778,0.257213,81645.0,81639.0,0.257229]
[1741880037988,0.0191885,81640.0,81639.0,0.257229]
[1741880038181,0.0191885,81640.0,81638.0,0.0124181]
[1741880038419,0.012249,81639.0,81638.0,0.0001691]
[1741880038873,0.2764155,81640.0,81638.0,0.0001691]
[1741880039091,0.012249,81639.0,81638.0,0.0001691]
[1741880039611,0.012249,81639.0,81638.0,0.0021691]
[1741880039807,0.5392003,81639.0,81638.0,0.0021691]
[1741880040050,0.245079,81607.0,81604.0,0.0001692]
[1741880040266,0.012254,81606.0,81604.0,0.0001692]
[1741880040474,0.012253,81612.0,81604.0,0.0001692]
[1741880040475,0.3,81613.0,81611.0,0.245063]
[1741880040683,0.3,81613.0,81612.0,0.012253]
[1741880040812,0.3,81613.0,81610.0,0.245066]
[1741880041022,0.245079,81607.0,81605.0,0.1]
[1741880041273,0.312254,81606.0,81605.0,0.1]
[1741880042594,0.50735499,81606.0,81605.0,0.105]
[1741880042806,0.387654,81606.0,81605.0,0.105]
[1741880043006,0.387654,81606.0,81605.0,0.1]
[1741880043410,0.387654,81606.0,81605.0,0.103]
[1741880044075,0.312254,81606.0,81605.0,0.103]
[1741880044277,0.312254,81606.0,81605.0,0.1]
[1741880044663,0.312254,81606.0,81605.0,0.101]
[1741880044865,0.3,81606.0,81605.0,0.101]
[1741880045105,0.290534,81606.0,81605.0,0.101]
[1741880045301,0.045454,81606.0,81605.0,0.101]
[1741880045503,0.0332,81606.0,81605.0,0.101]
[1741880045745,0.0332,81606.0,81605.0,0.358337]
[1741880045955,0.0332,81606.0,81605.0,0.101]
[1741880046121,0.06465076,81606.0,81605.0,0.101]
[1741880046336,0.06465076,81606.0,81605.0,0.1]
[1741880047346,0.06465076,81606.0,81605.0,0.101]
[1741880047509,0.36565076,81606.0,81605.0,0.101]
[1741880047953,0.36465076,81606.0,81605.0,0.101]
[1741880048156,0.0332,81606.0,81605.0,0.113254]
[1741880048357,0.0332,81606.0,81605.0,0.101]
[1741880049175,0.0332,81606.0,81605.0,0.1011691]
[1741880049378,0.0332,81606.0,81605.0,0.1124231]
[1741880049741,0.0332,81606.0,81605.0,0.23212409]
[1741880050180,0.0332,81606.0,81605.0,0.23312409]
[1741880050581,0.0332,81606.0,81605.0,0.1011691]
[1741880050582,0.290534,81606.0,81605.0,0.1011691]
[1741880051031,0.290534,81606.0,81605.0,0.1001691]
[1741880051205,0.290534,81606.0,81605.0,0.1011691]
[1741880051698,0.05239721,81606.0,81605.0,0.1001691]
[1741880051861,0.05239721,81606.0,81605.0,0.1011691]
[1741880052287,0.05239721,81606.0,81605.0,0.1031691]
[1741880052488,0.06465121,81606.0,81605.0,0.1031691]
[1741880052739,0.30973121,81606.0,81605.0,0.1011691]
[1741880052984,0.30973121,81606.0,81605.0,0.1031691]
[1741880053155,0.05239721,81606.0,81605.0,0.1031691]
[1741880054247,0.30973121,81606.0,81605.0,0.1031691]
[1741880054427,0.290534,81606.0,81605.0,0.1031691]